Cogmind - Beta 10.2 @@@ ROGUE MODE // 2021.03.20 @ 23:14:20 Player: leiavoia Result: Destroyed by Y-54 Guardian with Gatling Laser Performance ------------- Evolutions (3) 1500 Regions Visited (5) 1000 Robots Destroyed (56) 280 Value Destroyed (1900) 1900 Prototype IDs (4) 80 Alien Tech Used (0) 0 Bonus (75) 75 TOTAL SCORE: 4835 Bonus ------- Follower Combat Kills 75 Cogmind --------- Core Integrity 0/700 Matter 215/300 Energy 79/100 System Corruption 2% Temperature Cool (12) Movement Walking (210) Ox3 Location -7/Storage Parts ------- > --- POWER (1) -------- (None) > --- PROPULSION (3) --- Aluminum Leg > --- UTILITY (6) ------ Improved Heat Sink Large Storage Unit Large Storage Unit Terrain Scan Processor Advanced Targeting Computer > --- WEAPON (3) ------- (None) > --- INVENTORY (16) --- Wheel Improved Heat Sink Improved Cooling System Improved Terrain Scanner Long-range Tractor Beam Improved Field Recycling Unit (0) Peak State ------------ > --- POWER ------------ Cooled Deuterium Engine > --- PROPULSION ------- Light Treads Armored Huge Wheel > --- UTILITY ---------- Improved Cooling System Large Storage Unit Large Storage Unit Terrain Scan Processor Advanced Targeting Computer Medium Armor Plating > --- WEAPON ----------- Lightning Gun Arc Projector Plasma Cannon > --- INVENTORY -------- Light Ion Engine Wheel Armored Huge Wheel Improved Sensor Array Improved Terrain Scanner Light Armor Plating Hardened Light Armor Plating Long-range Tractor Beam Improved Field Recycling Unit EM Pulse Gun Lightning Gun Lightning Gun Lightning Gun Plasma Cannon Mini Grenade Launcher [Rating: 43] Favorites ----------- Power Improved Ion Engine Engine Improved Ion Engine Power Core Light Nuclear Core Propulsion Light Treads Treads Light Treads Leg Aluminum Leg Wheel Armored Huge Wheel Utility Large Storage Unit Device Improved Sensor Array Storage Large Storage Unit Processor Targeting Computer Protection Hardened Light Armor Plating Weapon EM Pulse Gun Energy Gun EM Pulse Gun Energy Cannon Plasma Cannon Ballistic Gun Assault Rifle Launcher Grenade Launcher Build | -11 -10 -9 -8 -7 -7 ------- Run | Scr Mat Mat Mat Fac Sto Slots Evolved 6 | . . 2 2 2 . Power . | . . . . . . Propulsion 1 | . . . 1 . . Utility 4 | . . 1 1 2 . Weapon 1 | . . 1 . . . Parts Attached 94 | 7 5 17 10 30 25 Power 10 | 2 1 2 . 4 1 Engine 8 | 2 1 2 . 2 1 Core 2 | . . . . 2 . Reactor . | . . . . . . Propulsion 14 | 2 1 4 3 . 4 Treads 10 | 1 1 4 2 . 2 Leg 2 | 1 . . . . 1 Wheel 2 | . . . 1 . 1 Hover . | . . . . . . Flight . | . . . . . . Utility 37 | 1 1 3 4 16 12 Device 15 | . 1 . 1 7 6 Storage 5 | 1 . 2 2 . . Processor 3 | . . 1 1 1 . Hackware . | . . . . . . Protection 14 | . . . . 8 6 Artifact . | . . . . . . Weapon 33 | 2 2 8 3 10 8 Energy Gun 20 | 1 2 6 3 7 1 Energy Cannon 4 | . . . . 1 3 Ballistic Gun 4 | 1 . . . 1 2 Ballistic Cannon . | . . . . . . Launcher 5 | . . 2 . 1 2 Special Weapon . | . . . . . . Impact Weapon . | . . . . . . Slashing Weapon . | . . . . . . Piercing Weapon . | . . . . . . Special Melee Weapon . | . . . . . . Unidentified Prototypes 2 | . . 1 . 1 . Parts Lost 28 | . . 2 . 4 22 Power 2 | . . . . . 2 Propulsion 5 | . . . . . 5 Utility 7 | . . . . 1 6 Weapon 14 | . . 2 . 3 9 Highest Loss Streak 11 | . . 2 . 1 11 Average Slot Usage (%) 91 | . 86 96 96 91 77 Engine 8 | . 14 11 9 5 1 Treads 17 | . 28 22 21 7 4 Wheel 2 | . . . 2 7 6 Device 4 | . . 2 9 9 6 Storage 18 | . 14 21 18 15 15 Processor 9 | . . 8 9 13 15 Protection 2 | . . . . 6 6 Energy Gun 17 | . 14 19 27 18 4 Ballistic Gun 5 | . 14 5 . 2 4 Launcher 2 | . . 4 . . 4 Naked Turns . | . . . . . . Heaviest Build 68 | 13 14 46 47 66 68 Greatest Support 60 | 20 40 40 60 28 28 Greatest Overweight (x) 3 | 1 . 1 1 2 3 Average Overweight (x) . | . . . . 1 1 Largest Inventory Capacity 16 | 6 6 16 16 16 16 Average Capacity 14 | 5 6 15 16 16 16 Most Carried 16 | 4 6 16 16 16 15 Average Carried 12 | 2 5 13 15 15 10 Final Capacity 16 | 6 6 16 16 16 16 Final Carried 16 | 4 6 16 16 16 6 Class Distribution -------------------- 49% | Mutant 30% | Gunner 13% | Skirmisher 6% | Tank Dominant Class ---------------- Mutant | -10/Materials Mutant | -9/Materials Gunner | -8/Materials Skirmisher | -7/Factory Mutant | -7/Storage Resources | -11 -10 -9 -8 -7 -7 ----------- Run | Scr Mat Mat Mat Fac Sto Matter Collected 1422 | 197 64 447 60 378 276 Remotely . | . . . . . . Salvage Created 2049 | . 97 737 114 378 723 Parts 119 | . 11 57 7 13 31 Haulers Intercepted 4 | . . 3 . . 1 Recyclers Shooed 1 | . . . . . 1 Parts Field Recycled . | . . . . . . Retrieved Matter . | . . . . . . Parts Self-Destructed . | . . . . . . Prevented . | . . . . . . Kills | -11 -10 -9 -8 -7 -7 ------- Run | Scr Mat Mat Mat Fac Sto Combat Hostiles Destroyed 45 | . 3 16 2 7 17 Guns 23 | . 3 10 2 5 3 Cannons 3 | . . . . . 3 AOE 18 | . . 6 . 1 11 Classes Destroyed 8 | . 3 5 . . . Builder 4 | . . 4 . . . Hauler 4 | . . 3 . . 1 Operator 1 | . 1 . . . . Watcher 2 | . . 2 . . . Swarmer 10 | . 2 6 . 2 . Grunt 24 | . 1 4 . 3 16 Duelist 1 | . . 1 . . . Sentry 10 | . . 5 2 2 1 Best Kill Streak 8 | . 2 8 2 2 5 Combat Bots Only 5 | . 2 4 2 2 5 Max Kills in Single Turn 4 | . 1 2 1 1 4 Gunslinging . | . . . . . . Exploded 4 | . . 2 . 1 4 Melee . | . . . . . . Uniques/NPCs Destroyed . | . . . . . . Combat | -11 -10 -9 -8 -7 -7 -------- Run | Scr Mat Mat Mat Fac Sto Damage Taken 4489 | . 92 604 106 862 2825 Core 804 | . . 95 . 83 626 Absorbed by Shields . | . . . . . . Core Remaining (%) 94 | 100 100 76 100 . . Volleys Fired 109 | . 9 37 5 26 32 Largest 3 | . 2 3 3 3 3 Hottest 188 | . 60 136 136 165 188 Shots Fired 250 | . 18 93 15 66 58 Gun 206 | . 18 80 15 63 30 Cannon 17 | . . . . 1 16 Launcher 27 | . . 13 . 2 12 Special . | . . . . . . Kinetic 66 | . 9 27 . 12 18 Thermal 25 | . . 3 5 1 16 Explosive 27 | . . 13 . 2 12 Electromagnetic 132 | . 9 50 10 51 12 Robot Hit Streak 20 | . 3 16 6 12 20 Robot Miss Streak 6 | . 6 4 1 3 3 Penetration Max . | . . . . . . Secondary Targets 5 | . 1 2 . 1 1 Max Gunslinging Chain 1 | . 1 1 . 1 1 Shots Hit Robots 172 | . 6 62 10 45 49 Core Hits 124 | . 5 44 5 17 53 Critical Hits . | . . . . . . Critical Kills . | . . . . . . Critical Parts Destroyed . | . . . . . . Melee Attacks . | . . . . . . Impact . | . . . . . . Slashing . | . . . . . . Piercing . | . . . . . . Sneak Attacks . | . . . . . . Combat Hostiles . | . . . . . . Follow-up Attacks . | . . . . . . Damage Inflicted 4587 | . 79 1542 147 787 2032 Guns 2179 | . 78 765 123 712 501 Cannons 372 | . . . . . 372 Explosions 2019 | . . 769 24 69 1157 Melee . | . . . . . . Ramming 17 | . 1 8 . 6 2 Kinetic 696 | . 11 198 . 170 317 Thermal 615 | . . 116 58 69 372 Explosive 1845 | . . 688 . . 1157 Electromagnetic 1414 | . 67 532 89 542 184 Impact . | . . . . . . Slashing . | . . . . . . Piercing . | . . . . . . Highest Corruption 2 | . . . . 2 2 Average Corruption 2 | . . . . 2 2 Corruption Purged . | . . . . . . Effects 4 | . . . . 2 2 Message Errors 1 | . . . . . 1 Energy Discharges 2 | . . . . 2 . Data Loss (minor) 1 | . . . . . 1 Overload Shots . | . . . . . . Overflow Damage 91 | . . 18 . . 73 Projectiles 6 | . . . . . 6 Explosions 85 | . . 18 . . 67 Melee . | . . . . . . Knockbacks . | . . . . . . Impact . | . . . . . . Kinetic . | . . . . . . Secondary . | . . . . . . Self-Inflicted Damage 399 | . . 108 33 42 216 Shots 13 | . . 5 1 1 6 Rammed 7 | . 1 2 . 2 2 Targets Rammed 7 | . 1 2 . 2 2 Kicked . | . . . . . . Crushed . | . . . . . . Highest Temperature 474 | . . 148 201 421 474 Average Temperature 129 | . . 40 85 146 197 Received Heat Transfer 1671 | . . 183 27 294 1167 Effects 4 | . . . . 3 1 Shutdowns 2 | . . . . 1 1 Energy Bleed 1 | . . . . 1 . Short Circuit 1 | . . . . 1 . Siege Activations . | . . . . . . Robots Corrupted 1 | . . . . 1 . Combat Hostiles 1 | . . . . 1 . Parts Fried . | . . . . . . Impact Corruptions . | . . . . . . Robots Melted . | . . . . . . Combat Hostiles . | . . . . . . Parts Melted 1 | . . 1 . . . Heat Transferred 1048 | . . 174 124 . 750 Parts Sabotaged . | . . . . . . Parts Stolen . | . . . . . . Parts Stripped . | . . . . . . Power Chain Reactions 3 | . . 1 1 1 . Missiles Intercepted . | . . . . . . Alert | -11 -10 -9 -8 -7 -7 ------- Run | Scr Mat Mat Mat Fac Sto Peak Influence 369 | . 154 281 146 268 369 Initial 73 | . . 65 67 65 73 Average 128 | . 74 126 121 150 182 Maximum Alert Level 1 | . . 1 . 1 1 Low Security (%) 84 | 100 100 92 100 60 61 Level 1 15 | . . 7 . 39 38 Level 2 . | . . . . . . Level 3 . | . . . . . . Level 4 . | . . . . . . Level 5 . | . . . . . . High Security . | . . . . . . Max Security . | . . . . . . Squads Dispatched 6 | . 1 2 . . 3 Investigation 1 | . 1 . . . . Extermination . | . . . . . . Reinforcement 5 | . . 2 . . 3 Assault . | . . . . . . Garrison . | . . . . . . Intercept . | . . . . . . Construction Impeded 2 | . . 2 . . . Haulers Reinforced 1 | . . . . . 1 Stealth | -11 -10 -9 -8 -7 -7 --------- Run | Scr Mat Mat Mat Fac Sto Distress Signals 4 | . 1 . . . 3 Communications Jammed . | . . . . . . Distress Signals . | . . . . . . Times Spotted 69 | . 7 22 2 12 26 Peak Tracking Total 17 | . 4 5 2 3 17 Tactical Retreats 3 | . . . . 2 1 Traps | -11 -10 -9 -8 -7 -7 ------- Run | Scr Mat Mat Mat Fac Sto Traps Triggered 3 | . 1 . . 2 . Indirectly . | . . . . . . Trap Hack Attempts . | . . . . . . Triggered . | . . . . . . Disarmed . | . . . . . . Reprogrammed 1 | . . . . . 1 Reused . | . . . . . . Traps Extracted . | . . . . . . Installed . | . . . . . . Triggered . | . . . . . . Machines | -11 -10 -9 -8 -7 -7 ---------- Run | Scr Mat Mat Mat Fac Sto Machines Disabled 10 | . 1 4 . 2 3 Max in Single Turn 2 | . 1 2 . 1 1 Machines Sabotaged . | . . . . . . Garrisons Compromised . | . . . . . . Overloaded Fab Kills . | . . . . . . Fab Network Shutdowns . | . . . . . . Hacking | -11 -10 -9 -8 -7 -7 --------- Run | Scr Mat Mat Mat Fac Sto Machines Accessed 9 | . 2 2 . 3 2 Terminals 9 | . 2 2 . 3 2 Fabricators . | . . . . . . Repair Stations . | . . . . . . Recycling Units . | . . . . . . Scanalyzers . | . . . . . . Garrison Access . | . . . . . . Total Hacks 12 | . 2 3 . 4 3 Successful 9 | . 2 1 . 3 3 Failed 3 | . . 2 . 1 . Catastrophic 2 | . . 2 . . . Database Lockouts . | . . . . . . Manual 2 | . 2 . . . . Terminals 12 | . 2 3 . 4 3 Fabricators . | . . . . . . Repair Stations . | . . . . . . Recycling Units . | . . . . . . Scanalyzers . | . . . . . . Garrison Access . | . . . . . . Terminal Hacks 9 | . 2 1 . 3 3 Prototype ID Bank 1 | . . . . . 1 Open Door 1 | . . . . . 1 Level Access Points 1 | . 1 . . . . Branch Access Points 2 | . 1 . . 1 . Unreport Threat 1 | . . 1 . . . Reprogram Traps 1 | . . . . . 1 Hauler Manifests 1 | . . . . 1 . Zone Layout 1 | . . . . 1 . Fabricator Hacks . | . . . . . . Repair Station Hacks . | . . . . . . Recycling Unit Hacks . | . . . . . . Scanalyzer . | . . . . . . Garrison Access Hacks . | . . . . . . Unauthorized Hacks . | . . . . . . Terminals . | . . . . . . Fabricators . | . . . . . . Repair Stations . | . . . . . . Recycling Units . | . . . . . . Scanalyzers . | . . . . . . Garrison Access . | . . . . . . Data Cores Recovered 1 | . 1 . . . . Used 1 | . 1 . . . . Hacking Detections 6 | . 1 2 . 2 1 Full Trace Events 1 | . . 1 . . . Feedback Events . | . . . . . . Feedback Blocked . | . . . . . . Robot Schematics Acquired . | . . . . . . Robots Built . | . . . . . . Matter . | . . . . . . Time . | . . . . . . Total Robot Build Rating . | . . . . . . Part Schematics Acquired . | . . . . . . Parts Built . | . . . . . . Matter . | . . . . . . Time . | . . . . . . Total Part Build Rating . | . . . . . . Parts Repaired . | . . . . . . Time . | . . . . . . Parts Recycled . | . . . . . . Recycled Matter . | . . . . . . Retrieved Matter . | . . . . . . Retrieved Components . | . . . . . . Parts Scanalyzed . | . . . . . . Part Schematics Acquired . | . . . . . . Parts Damaged . | . . . . . . Bothacking | -11 -10 -9 -8 -7 -7 ------------ Run | Scr Mat Mat Mat Fac Sto Used RIF Installer . | . . . . . . Robots Hacked . | . . . . . . Non-combat . | . . . . . . Combat . | . . . . . . Robot Hacks Applied . | . . . . . . Relay Couplers Released . | . . . . . . Robots Rewired . | . . . . . . Allies Hacked . | . . . . . . Hacks Repelled . | . . . . . . Allies | -11 -10 -9 -8 -7 -7 -------- Run | Scr Mat Mat Mat Fac Sto Total Allies 10 | . . . . . 10 Largest Group 9 | . . . . . 9 Highest-Rated Group 157 | . . . . . 157 Highest-Rated Ally 29 | . . . . . 29 Total Orders . | . . . . . . Ally Attacks 30 | . . . . . 30 Total Damage 435 | . . . . . 435 Kills 2 | . . . . . 2 Allies Corrupted . | . . . . . . Allies Melted 1 | . . . . . 1 Intel | -11 -10 -9 -8 -7 -7 ------- Run | Scr Mat Mat Mat Fac Sto Robot Analysis Total . | . . . . . . Derelict Logs Recovered . | . . . . . . Drone Launches . | . . . . . . Drone Recoveries . | . . . . . . Exploration | -11 -10 -9 -8 -7 -7 ------------- Run | Scr Mat Mat Mat Fac Sto Turns Passed 2557 | 69 295 1092 262 528 311 Spaces Moved 1353 | 40 161 521 162 321 148 Core 4 | 4 . . . . . Treads 804 | 9 161 521 95 . 18 Legs 29 | 27 . . . . 2 Wheels 516 | . . . 67 321 128 Hover . | . . . . . . Flight . | . . . . . . Fastest Speed 50 | 50 160 160 110 110 110 Average Speed 149 | 142 160 179 139 114 122 Slowest Speed 210 | 160 160 180 160 120 210 Overloaded Moves . | . . . . . . Propulsion Burnouts . | . . . . . . Robots Hopped . | . . . . . . Cave-ins Triggered . | . . . . . . Exploration Rate (%) 26 | 3 35 48 20 10 40 Regions Visited 5 Branch Regions 1 Pre-discovered Areas . | . . . . . . Known Exits Taken 2 | . 1 . . 1 . Unknown Exits Taken 3 | 1 . 1 1 . . Scrap Searched . | . . . . . . Spaces Dug 21 | . . . . 21 . Terrain Destroyed 170 | . . 69 4 35 62 Melee . | . . . . . . Projectile 2 | . . . . 1 1 AOE 168 | . . 69 4 34 61 Terrain Rammed . | . . . . . . Walls Destroyed . | . . . . . . Machines Disabled . | . . . . . . Actions | -11 -10 -9 -8 -7 -7 --------- Run | Scr Mat Mat Mat Fac Sto Total 1661 | 49 180 598 188 426 220 Wait 21 | . . . . 13 8 Move 1348 | 39 160 520 161 320 148 Hop . | . . . . . . Pick Up 29 | 3 2 12 3 8 1 Fast Attach 28 | 6 2 3 2 9 6 Attach 21 | . . 2 2 5 12 Detach 3 | . . . . 2 1 Swap 45 | 1 3 12 6 16 7 Drop 37 | . 3 10 9 15 . Fire 109 | . 9 37 5 26 32 Melee . | . . . . . . Ram 2 | . . . . 2 . Kick . | . . . . . . Crush 5 | . 1 2 . . 2 Escape Stasis . | . . . . . . Rewire 13 | . . . . 10 3 Trap . | . . . . . . Miscellaneous . | . . . . . . Route ------- -11/Scrapyard -10/Materials (discovered 5 exits: *Mat x3 / Min x2) -9/Materials -8/Materials -7/Factory (discovered 4 exits: *Sto x2 / Low x2) -7/Storage History --------- Turn | Location | Event 25 | -11/Scrapyard | Discovered new exit (range 14) 70 | -11/Scrapyard | Entered Materials 154 | -10/Materials | Identified exit to Materials 304 | -10/Materials | Build established: Mutant 312 | -10/Materials | Identified exit to Mines 365 | -10/Materials | Entered another Materials area 365 | -9/Materials | Evolved 2 slots: Utility x1, Weapon x1 1430 | -9/Materials | Discovered new exit (range 16) 1457 | -9/Materials | Entered another Materials area 1457 | -8/Materials | Evolved 2 slots: Propulsion x1, Utility x1 1631 | -8/Materials | Build established: Gunner 1667 | -8/Materials | Discovered new exit (range 4) 1719 | -8/Materials | Entered Factory 1719 | -7/Factory | Evolved 2 slots: Utility x2 1761 | -7/Factory | Identified exit to Storage 1761 | -7/Factory | Identified exit to Lower Caves 2247 | -7/Factory | Entered Storage 2354 | -7/Storage | Lost 3 parts (1n1u1w) 2393 | -7/Storage | Lost 3 parts (1p2w) 2488 | -7/Storage | Core integrity fell below 50% 2502 | -7/Storage | Assisted by bots powering up and referring to "LRC-V3" 2524 | -7/Storage | Lost 11 parts (1p2n4u4w) 2543 | -7/Storage | Core integrity fell below 20% 2558 | -7/Storage | Destroyed by Y-54 Guardian with Gatling Laser Last Messages --------------- 02530_ Trooper 4e destroyed. 02530_ G-47 Trooper destroyed. 02530_ Destroyed Particle Gun. 02530_ Terminal disabled. 02532_ G-47 Trooper destroyed. 02532_ Destroyed Aluminum Leg. 02534_ Destroyed Lgt. Nuclear Core. 02534_ Destroyed Imp. Heat Sink. 02536_ Arm. Huge Wheel destroyed. 02536_ G-47 Trooper destroyed. 02544_ Acquired Flak Gun. 02545_ The unstable cave ceiling collapses. 02545_ Flak Gun destroyed. 02548_ The unstable cave ceiling collapses. 02550_ Lgt. Treads destroyed. 02550_ Destroyed Lgt. Treads. 02552_ Imp. Heat Sink destroyed. 02552_ Destroyed Imp. Heat Sink. 02555_ K-01 Serf collects debris. 02558_ Mni. Grenade Launcher destroyed. Map ----- +----------------------------------------------------+ | | | | | | | | | ?????????????????????????????????????????????????? | | ?????????????????????????????????????????????????? | | ?????????????????????????????????????????????????? | | ?????????????????????????????????????????????????? | | ?????????????????????????????????????????????????? | | ?????????????????????????????????????????????????? | | ?????????????????????????????????????????????????? | | ?????????????????????????????????????????????????? | | ?????????????????????????????????????????????????? | | ?????????????????????????????????????????????????? | | ???????????????????????#####?????????????????????? | | ???????????????????????#! !#?????????????????????? | | ???????????????????????#! !#?????????????????????? | | ???????????????????????#! !#?????????????????????? | | ??????????????????????##! !##????????????????????? | | ??????????????????????# ##???????????????????? | | ??????????????????????# %* #???????????????????? | | ?????????????????????##= ##???????????????????? | | ??????????############ ###??????????????????? | | ??????????# ##?????????????????? | | ??????????# a =*#?????????????????? | | ??????????# @ %#?????????????????? | | ??????????# k Y !#?????????????????? | | ?????????# ==#?????????????????? | | ?????????# / #?????????????????? | | ?????????# k %% ##?????????????????? | | ??# ?????## % ##### ####??????????????????? | | ?###+###### ????# ##?????????????????????? | | % ?????# #??????????????????????? | | #?????# #??????????????????????? | | ???## ####??# #??????????????????????? | | ????# """#??# #??????????????????????? | | ????# """ Y"#??# +??????????????????????? | | ????# """ ="""#??# ^#??????????????????????? | | ????# """ %####??# ???????????????????????? | | ????# !!= #????# ???????????????????????? | | ??### !!%* #????? ???????????????????????? | | #???????????????????????????????? | | #???????????????????????????????? | | ##### ##???????????????????????????????? | | #+##+####????# #????????????????????????????????? | | ?????######??# #????????????????????????????????? | | ?????#! ?# #????????????????????????????????? | | ?????#!/ !?# #????????????????????????????????? | | ?????# # #????????????????????????????????? | | ?????# * # #????????????????????????????????? | +----------------------------------------------------+ Best States ------------- Heat Dissipation 62 Coolant Potential 50 Energy Generation 18 Energy Capacity 310 Matter Stores 300 Matter Capacity 300 Sight Range 16 Robot Scan Range 13 Terrain Scan Range 16 Terrain Scan Density 85 Armor Coverage 600 Evasion (%) 40 Targeting Accuracy 8 Recoil Reduction 3 Item Schematics ----------------- None Robot Schematics ------------------ None Fabricated ------------ Nothing Alien Tech Used ----------------- None Achievements -------------- None Challenges ------------ None Game ------ Seed PortableCooledTreads Manual? 0 Play Time 00:37:43 Cumulative 367.8 hours Start 2021.03.20 @ 22:38:24 End 2021.03.20 @ 23:14:20 Sessions 1 Manual Loads 0 Difficulty Rogue Special Mode None Game No. 43 Rogue 12 Adventurer 31 Explorer 0 Win Type - Total 20 Types 15/0/2/3/0/0/0/0/0 Lore% 58 Gallery% 73 Achievement% 56 Wizard Run 0 Options --------- ASCII 0 Keyboard 0 Movement Arrows Keybinds 0 Fullscreen 1 Font 20/Terminus Map View 66x50 Tactical HUD 1 Map Filters NONE Filters NONE Steam 1 RUN: 617ff1f7-69a4-46cc-826b-03baa70834f2